Cogmind - Beta 15 *** ADVENTURER MODE // 2025.05.24 @ 11:31:28 // Winter2019/RPGLIKE Player: Jack Result: Destroyed by Y-54 Guardian with Flak Gun Performance ------------- Evolutions (3) 1500 Regions Visited (5) 1000 Robots Destroyed (12) 60 Value Destroyed (328) 328 Prototype IDs (0) 0 Alien Tech Used (0) 0 Bonus (200) 200 TOTAL SCORE: 3088 Bonus ------- Pacifist 200 Cogmind --------- Core Integrity 0/600 Matter 280/300 Energy 97/100 System Corruption 6% Temperature Cool (18) Movement Flying (34) Location -7/Factory Parts ------- > --- POWER (1) -------- (None) > --- PROPULSION (2) --- Flight Unit VTOL Module > --- UTILITY (4) ------ Improved Sensor Array Improved Signal Interpreter > --- WEAPON (2) ------- Shock Rifle Pulse Rifle > --- INVENTORY (2) ---- Flight Unit Peak State ------------ > --- POWER ------------ (None) > --- PROPULSION ------- Flight Unit VTOL Module > --- UTILITY ---------- Improved Sensor Array Improved Signal Interpreter > --- WEAPON ----------- Shock Rifle Pulse Rifle > --- INVENTORY -------- Flight Unit [Rating: 15] Favorites ----------- Power None Propulsion Flight Unit Flight Unit Flight Unit Utility Improved Signal Interpreter Device Improved Sensor Array Processor Improved Signal Interpreter Weapon Shock Rifle Energy Gun Shock Rifle Ballistic Gun Heavy Assault Rifle Build | -11 -10 -10 -9 -8 -7 ------- Run | Yrd Mat Min Mat Mat Fac Slots Evolved 5 | 4 . . . . 1 Power . | . . . . . . Propulsion 1 | 1 . . . . . Utility 3 | 3 . . . . . Weapon 1 | . . . . . 1 Parts Attached 9 | 1 . . 2 1 5 Power . | . . . . . . Engine . | . . . . . . Core . | . . . . . . Reactor . | . . . . . . Propulsion 3 | . . . 2 . 1 Treads . | . . . . . . Leg . | . . . . . . Wheel . | . . . . . . Hover . | . . . . . . Flight 3 | . . . 2 . 1 Utility 2 | . . . . . 2 Device 1 | . . . . . 1 Storage . | . . . . . . Processor 1 | . . . . . 1 Hackware . | . . . . . . Protection . | . . . . . . Artifact . | . . . . . . Weapon 4 | 1 . . . 1 2 Energy Gun 3 | 1 . . . . 2 Energy Cannon . | . . . . . . Ballistic Gun 1 | . . . . 1 . Ballistic Cannon . | . . . . . . Launcher . | . . . . . . Special Weapon . | . . . . . . Impact Weapon . | . . . . . . Slashing Weapon . | . . . . . . Piercing Weapon . | . . . . . . Special Melee Weapon . | . . . . . . Unidentified Prototypes . | . . . . . . Corrupted Parts 1 | . . . . . 1 System Corruption 2 | . . . . . 2 Parts Lost 1 | . . . 1 . . Power . | . . . . . . Propulsion . | . . . . . . Utility . | . . . . . . Weapon 1 | . . . 1 . . Highest Loss Streak 1 | . . . 1 . . To Critical Strikes . | . . . . . . Average Backups . | . . . . . . Power . | . . . . . . Propulsion . | . . . . . . Utility . | . . . . . . Weapon . | . . . . . . Tool/Special . | . . . . . . Unused Backups . | . . . . . . Power . | . . . . . . Propulsion . | . . . . . . Utility . | . . . . . . Weapon . | . . . . . . Tool/Special . | . . . . . . Average Slot Usage (%) 33 | . 12 12 20 33 46 Flight 16 | . . . 9 25 22 Device 1 | . . . . . 2 Processor 1 | . . . . . 2 Energy Gun 13 | . 12 12 11 . 17 Ballistic Gun 1 | . . . . 8 2 Peak Build Rating 15 | 1 1 1 3 4 15 Average Rating 5 | . 1 1 1 3 9 On Entrance 1 | . 1 1 1 2 4 Naked Turns . | . . . . . . Heaviest Build 7 | 2 2 2 2 3 7 Greatest Support 8 | 3 3 3 8 8 8 Greatest Overweight (x) 1 | . . . . . 1 Average Overweight (x) . | . . . . . . Largest Inventory Capacity 2 | . . . . 2 2 Average Capacity 1 | . . . . 1 2 Most Carried 2 | . . . . . 2 Average Carried . | . . . . . . Final Capacity 2 | . . . . 2 2 Final Carried 1 | . . . . . 1 Class Distribution -------------------- 100% | Hacker-Mutant Dominant Class ---------------- Hacker-Mutant | -10/Materials Hacker-Mutant | -10/Mines Hacker-Mutant | -9/Materials Hacker-Mutant | -8/Materials Hacker-Mutant | -7/Factory Resources | -11 -10 -10 -9 -8 -7 ----------- Run | Yrd Mat Min Mat Mat Fac Matter Collected 286 | 178 . . 52 . 56 Remotely . | . . . . . . Salvage Created 278 | . . . 77 . 201 Parts 23 | . . . 13 . 10 Haulers Intercepted . | . . . . . . Recyclers Shooed . | . . . . . . Parts Field Recycled . | . . . . . . Retrieved Matter . | . . . . . . Parts Self-Destructed . | . . . . . . Prevented . | . . . . . . Kills | -11 -10 -10 -9 -8 -7 ------- Run | Yrd Mat Min Mat Mat Fac Combat Hostiles Destroyed 12 | . . . 6 . 6 Guns 11 | . . . 5 . 6 AOE 1 | . . . 1 . . Classes Destroyed 3 | . . . 2 . 1 Swarmer 8 | . . . 4 . 4 Grunt 3 | . . . 2 . 1 Hunter 1 | . . . . . 1 Best Kill Streak 6 | . . . 6 . 4 Combat Bots Only 6 | . . . 6 . 4 Max Kills in Single Turn 1 | . . . 1 . 1 Gunslinging . | . . . . . . Exploded 1 | . . . 1 . . Melee . | . . . . . . Uniques/NPCs Destroyed . | . . . . . . Combat | -11 -10 -10 -9 -8 -7 -------- Run | Yrd Mat Min Mat Mat Fac Hostile Shots Fired 153 | . 6 2 46 34 65 Missed 60 | . 4 . 15 16 25 Hits 93 | . 2 2 31 18 40 Projectile 93 | . 2 2 31 18 40 AOE 3 | . . 3 . . . Critical Strikes 2 | . . . . 2 . Damage Taken 1064 | . 20 109 275 226 434 Core 896 | . 15 106 225 199 351 Absorbed by Shields . | . . . . . . Redirected to Core 521 | . 15 9 143 90 264 Ignored by Resistances 308 | . 6 28 85 64 125 Regen/Repaired (Parts) 16 | . . . . . 16 Core Remaining (%) 71 | 100 . 79 70 37 . Volleys Fired 53 | . . . 28 2 23 Largest 2 | . . . 1 1 2 Hottest 113 | . . . 40 23 113 Shots Fired 68 | . . . 28 2 38 Gun 68 | . . . 28 2 38 Cannon . | . . . . . . Launcher . | . . . . . . Special . | . . . . . . Kinetic 2 | . . . . 2 . Thermal 15 | . . . . . 15 Explosive . | . . . . . . Electromagnetic 51 | . . . 28 . 23 Robot Hit Streak 16 | . . . 12 2 16 Robot Miss Streak 2 | . . . 2 . 1 Penetration Max . | . . . . . . Secondary Targets 2 | . . . . . 2 Max Gunslinging Chain 1 | . . . . . 1 Shots Hit Robots 47 | . . . 21 2 24 Core Hits 21 | . . . 8 1 12 Critical Kills . | . . . . . . Critical Parts Destroyed . | . . . . . . Critical Strikes 1 | . . . . . 1 Burn 1 | . . . . . 1 Melee Attacks . | . . . . . . Impact . | . . . . . . Slashing . | . . . . . . Piercing . | . . . . . . Sneak Attacks . | . . . . . . Combat Hostiles . | . . . . . . Follow-up Attacks . | . . . . . . Damage Inflicted 706 | . . . 257 29 420 Guns 661 | . . . 235 29 397 Cannons . | . . . . . . Explosions 22 | . . . 22 . . Melee . | . . . . . . Ramming 23 | . . . . . 23 Kinetic 29 | . . . . 29 . Thermal 142 | . . . 22 . 120 Explosive . | . . . . . . Electromagnetic 512 | . . . 235 . 277 Impact . | . . . . . . Slashing . | . . . . . . Piercing . | . . . . . . Highest Corruption 6 | . . . . . 6 Average Corruption 3 | . . . . . 3 Corruption Purged . | . . . . . . Corruption Blocked . | . . . . . . Effects 2 | . . . . . 2 Message Errors 1 | . . . . . 1 Data Loss (minor) 1 | . . . . . 1 Overload Shots . | . . . . . . Overflow Damage . | . . . . . . Projectiles . | . . . . . . Explosions . | . . . . . . Melee . | . . . . . . Knockbacks . | . . . . . . Impact . | . . . . . . Kinetic . | . . . . . . Secondary . | . . . . . . Self-Inflicted Damage 55 | . . . 32 . 23 Shots 1 | . . . 1 . . Rammed . | . . . . . . Targets Rammed . | . . . . . . Kicked . | . . . . . . Crushed . | . . . . . . Highest Temperature 266 | . . . 17 10 266 Average Temperature 84 | . . . 6 6 97 Received Heat Transfer 273 | . 15 21 45 144 48 Siege Activations . | . . . . . . Martial Activations . | . . . . . . Shielding Activations . | . . . . . . Robots Disrupted . | . . . . . . Combat Hostiles . | . . . . . . Robots Corrupted . | . . . . . . Combat Hostiles . | . . . . . . Parts Fried 1 | . . . 1 . . Impact Corruptions . | . . . . . . Robots Melted . | . . . . . . Combat Hostiles . | . . . . . . Parts Melted . | . . . . . . Heat Transferred 383 | . . . 50 . 333 Parts Sabotaged . | . . . . . . Parts Stolen . | . . . . . . Parts Stripped . | . . . . . . Power Chain Reactions 1 | . . . 1 . . Alert | -11 -10 -10 -9 -8 -7 ------- Run | Yrd Mat Min Mat Mat Fac Maximum Alert Level . | . . . . . . Low Security (%) 100 | 100 100 100 100 100 100 Level 1 . | . . . . . . Level 2 . | . . . . . . Level 3 . | . . . . . . Level 4 . | . . . . . . Level 5 . | . . . . . . High Security . | . . . . . . Max Security . | . . . . . . Peak Influence 125 | . 60 39 122 47 125 Initial 29 | . . 19 9 29 2 Average 53 | . 5 22 66 28 66 Influence Increases 554 | . 75 30 153 18 278 Destroy 0b10 Robot/C 240 | . . . 120 . 120 Destroy Leader 30 | . . . 10 . 20 Successful Hack 56 | . . . 14 18 24 Disable Machine 9 | . . . . . 9 Destroy Structure 9 | . . . 9 . . Partial Spotted 15 | . 15 . . . . Lose Combat Pursuer 195 | . 60 30 . . 105 Influence Decreases 430 | . 15 61 100 93 161 Entered New Map 119 | . . 41 20 53 5 Time Decay 301 | . 15 20 70 40 156 Lost Part 10 | . . . 10 . . Squads Dispatched 7 | . 1 . . 3 3 Investigation 5 | . 1 . . 2 2 Extermination 1 | . . . . . 1 Reinforcement 1 | . . . . 1 . Assault . | . . . . . . Garrison . | . . . . . . Intercept . | . . . . . . Searches Triggered . | . . . . . . Construction Impeded . | . . . . . . Haulers Reinforced . | . . . . . . Active Scanning Responses . | . . . . . . Cargo Convoy Interrupts . | . . . . . . Stealth | -11 -10 -10 -9 -8 -7 --------- Run | Yrd Mat Min Mat Mat Fac Distress Signals 2 | . . . . 1 1 Communications Jammed . | . . . . . . Distress Signals . | . . . . . . Times Spotted 44 | . 3 4 10 11 16 Peak Tracking Total 10 | . 4 2 6 10 7 Tactical Retreats 5 | . 1 1 . . 3 Traps | -11 -10 -10 -9 -8 -7 ------- Run | Yrd Mat Min Mat Mat Fac Traps Triggered 1 | . 1 . . . . Indirectly . | . . . . . . Trap Hack Attempts . | . . . . . . Triggered . | . . . . . . Disarmed . | . . . . . . Reprogrammed . | . . . . . . Reused . | . . . . . . Traps Extracted . | . . . . . . Installed . | . . . . . . Triggered . | . . . . . . Machines | -11 -10 -10 -9 -8 -7 ---------- Run | Yrd Mat Min Mat Mat Fac Machines Disabled 1 | . . . . . 1 Max in Single Turn 1 | . . . . . 1 Machines Repaired . | . . . . . . Machines Dismantled . | . . . . . . Machines Sabotaged . | . . . . . . Overloaded Fab Kills . | . . . . . . Hacking | -11 -10 -10 -9 -8 -7 --------- Run | Yrd Mat Min Mat Mat Fac Machines Accessed 9 | . . . 2 3 4 Terminals 7 | . . . 2 3 2 Fabricators 1 | . . . . . 1 Repair Stations 1 | . . . . . 1 Recycling Units . | . . . . . . Scanalyzers . | . . . . . . Garrison Access . | . . . . . . Total Hacks 26 | . . . 5 9 12 Successful 11 | . . . 3 2 6 Failed 15 | . . . 2 7 6 Catastrophic 3 | . . . . 1 2 Database Lockouts . | . . . . . . Manual 18 | . . . 4 9 5 Terminals 19 | . . . 5 9 5 Fabricators 3 | . . . . . 3 Repair Stations 4 | . . . . . 4 Recycling Units . | . . . . . . Scanalyzers . | . . . . . . Garrison Access . | . . . . . . Terminal Hacks 5 | . . . 2 2 1 Record 1 | . . . . . 1 Part Schematic 2 | . . . 1 1 . Level Access Points 1 | . . . 1 . . Terminal Index 1 | . . . . 1 . Fabricator Hacks 2 | . . . . . 2 Load Schematic 1 | . . . . . 1 Build 1 | . . . . . 1 Repair Station Hacks 3 | . . . . . 3 Scan Component 2 | . . . . . 2 Repair 1 | . . . . . 1 Recycling Unit Hacks . | . . . . . . Scanalyzer . | . . . . . . Garrison Access Hacks . | . . . . . . Unauthorized Hacks 1 | . . . 1 . . Terminals 1 | . . . 1 . . Botnet 1 | . . . 1 . . Fabricators . | . . . . . . Repair Stations . | . . . . . . Recycling Units . | . . . . . . Scanalyzers . | . . . . . . Garrison Access . | . . . . . . Data Cores Recovered . | . . . . . . Used . | . . . . . . Hacking Detections 8 | . . . 1 3 4 Full Trace Events 4 | . . . . 2 2 Feedback Events . | . . . . . . Feedback Blocked . | . . . . . . Robot Schematics Acquired . | . . . . . . Robots Built . | . . . . . . Authchips . | . . . . . . Time . | . . . . . . Total Robot Build Rating . | . . . . . . Part Schematics Acquired 2 | . . . 1 1 . Parts Built 1 | . . . . . 1 Authchips . | . . . . . . Time 36 | . . . . . 36 Total Part Build Rating 3 | . . . . . 3 Parts Repaired 1 | . . . . . 1 Time 12 | . . . . . 12 Parts Recycled . | . . . . . . Recycled Matter . | . . . . . . Retrieved Matter . | . . . . . . Retrieved Components . | . . . . . . Parts Scanalyzed . | . . . . . . Part Schematics Acquired . | . . . . . . Parts Damaged . | . . . . . . Bothacking | -11 -10 -10 -9 -8 -7 ------------ Run | Yrd Mat Min Mat Mat Fac Used RIF Installer . | . . . . . . Robots Hacked . | . . . . . . Non-combat . | . . . . . . Combat . | . . . . . . Robot Hacks Applied . | . . . . . . Relay Couplers Released . | . . . . . . Fabnet Peak Effective % . | . . . . . . Robots Rewired . | . . . . . . Allies Hacked . | . . . . . . Hacks Repelled . | . . . . . . Allies | -11 -10 -10 -9 -8 -7 -------- Run | Yrd Mat Min Mat Mat Fac Total Allies . | . . . . . . Largest Group . | . . . . . . Highest-Rated Group . | . . . . . . Highest-Rated Ally . | . . . . . . Total Orders . | . . . . . . Ally Attacks . | . . . . . . Total Damage . | . . . . . . Kills . | . . . . . . Allies Corrupted . | . . . . . . Allies Melted . | . . . . . . Intel | -11 -10 -10 -9 -8 -7 ------- Run | Yrd Mat Min Mat Mat Fac Active Infowar (turns) 84 | . . . . . 84 Sensors 84 | . . . . . 84 Robot Analysis Total . | . . . . . . Derelict Logs Recovered . | . . . . . . Drone Launches . | . . . . . . Drone Recoveries . | . . . . . . Exploration | -11 -10 -10 -9 -8 -7 ------------- Run | Yrd Mat Min Mat Mat Fac Turns Passed 695 | 14 58 40 147 81 355 Spaces Moved 1092 | 24 111 79 163 182 533 Core 306 | 24 111 79 92 . . Treads . | . . . . . . Legs . | . . . . . . Wheels . | . . . . . . Hover . | . . . . . . Flight 786 | . . . 71 182 533 Fastest Speed 34 | 50 50 50 37 37 34 Average Speed 42 | 50 50 50 44 37 41 Slowest Speed 120 | 50 50 50 50 37 120 Overloaded Moves . | . . . . . . Propulsion Burnouts . | . . . . . . Robots Hopped 13 | . . . 2 5 6 Potential Cave-ins . | . . . . . . Cave-ins Triggered . | . . . . . . Exploration Rate (%) 20 | 3 34 37 19 20 11 Regions Visited 5 Branch Regions 1 Pre-discovered Areas . | . . . . . . Known Exits Taken 1 | . . . 1 . . Unknown Exits Taken 4 | 1 1 1 . 1 . Scrap Searched . | . . . . . . Spaces Dug . | . . . . . . Terrain Destroyed 8 | . . . 8 . . Melee . | . . . . . . Projectile . | . . . . . . AOE 8 | . . . 8 . . Terrain Rammed 1 | . . . . . 1 Walls Destroyed . | . . . . . . Machines Disabled 1 | . . . . . 1 Actions | -11 -10 -10 -9 -8 -7 --------- Run | Yrd Mat Min Mat Mat Fac Total 1226 | 24 112 78 205 187 620 Wait 71 | . 2 . 7 8 54 Move 1062 | 23 110 78 159 171 521 Hop 12 | . . . 1 5 6 Pick Up 2 | . . . . . 2 Fast Attach 7 | 1 . . 2 1 3 Attach 2 | . . . . . 2 Detach . | . . . . . . Swap 1 | . . . . . 1 Drop 1 | . . . . . 1 Fire 53 | . . . 28 2 23 Melee . | . . . . . . Ram 1 | . . . . . 1 Kick . | . . . . . . Crush . | . . . . . . Escape Stasis . | . . . . . . Rewire . | . . . . . . Trap . | . . . . . . Miscellaneous 14 | . . . 8 . 6 Route ------- -11/Scrapyard -10/Materials -10/Mines -9/Materials (discovered 3 exits: *Mat x3) -8/Materials -7/Factory (discovered 1 exit: [*Low]) History --------- Turn | Location | Event 4 | -11/Scrapyard | Discovered new exit (range 15) 7 | -11/Scrapyard | Upgraded with Propulsion slot (x1) 7 | -11/Scrapyard | Upgraded with Utility slot (x3) 15 | -11/Scrapyard | Entered Materials 65 | -10/Materials | Discovered new exit (range 16) 73 | -10/Materials | Entered Mines 90 | -10/Mines | Met a Derelict bent on vengeance 108 | -10/Mines | Assembled infested the area 108 | -10/Mines | Discovered new exit (range 9) 113 | -10/Mines | Entered Materials 115 | -9/Materials | Reached level 2 115 | -9/Materials | Reached level 3 140 | -9/Materials | Identified exit to Materials 184 | -9/Materials | Reached level 4 260 | -9/Materials | Entered another Materials area 262 | -8/Materials | Reached level 5 262 | -8/Materials | Reached level 6 307 | -8/Materials | Build established: Hacker-Mutant 326 | -8/Materials | Core integrity fell below 50% 339 | -8/Materials | Discovered new exit (range 7) 341 | -8/Materials | Entered Factory 342 | -7/Factory | Core integrity fell below 50% 343 | -7/Factory | Reached level 7 343 | -7/Factory | Reached level 8 343 | -7/Factory | Reached level 9 354 | -7/Factory | Discovered new exit (range 5) 375 | -7/Factory | Repaired Broken Flight Unit 400 | -7/Factory | Upgraded with Weapon slot (x1) 453 | -7/Factory | Core integrity fell below 20% 671 | -7/Factory | Fabricated Hacking Suite? 696 | -7/Factory | Destroyed by Y-54 Guardian with Flak Gun Last Messages --------------- Upgraded: Sensor Range (+8) DO6CY#:|HDGM>Z5%PUS CGFS6M4,ATZY#%J%QCB ALERT: Potential suspicious activity detected, Programmers report to Factory Zone 6D. Connecting with Terminal... ALERT: Suspicious activity at Terminal F020. Dispatching Investigation squad. Connecting with Fabricator... >>Load(Hacking Suite) Uploading Hacking Suite schematic... Loaded successfully: Hacking Suite Rating: 3 Time: 36 Initiate build sequence. >>Build Building Hacking Suite... ETC: 36 ALERT: Unauthorized use of fabrication network. Dispatching investigation squad. W-25 Informer distress signal alerts nearby ally. >> FABRICATOR: Completed Hacking Suite? Map ----- +----------------------------------------------------+ | ?????????????????????????????????????????????????? | | ?????????????????????????????????????????????????? | | ?????????????????????????????????????????????????? | | ?????????????????????????????????????????????????? | | ?????????????????????????????????????????????????? | | ?????????????????????????????????????????????????? | | ?????????????????????????????????????????????????? | | ?????????????????????????????????????????????????? | | ?????????????????????????????????????????????????? | | ?????????????????????????????????????????????????? | | #????????????????????? ??????????????????????? | | #???????????????????# ??????????????????????? | | #???????????????????# ?t????????????????????? | | #???????????????????# #?????????????????????? | | #???????????????????# #?????????????????????? | | #???????????????????# #?????????????????????? | | #???????????????????# #?????????????????????? | | #???????????????????# #?????????????????????? | | #???????????????????# #?????????????????????? | | #???????????????????# k#?????????????????????? | | "#???????????????????# #?????????????????????? | | "#???????????????????# #????????????????????k? | | "#???????????????????# #?????????????????????? | | "#???????????????????# +?????????????????????? | | "#???????????????????# #?????????????????????? | | ###########+####????# @ #?????????????????????? | | g g #??### ###???????????????????? | | #??# #???????????????????? | | ######### ^ #??# #???????????????????? | | #???????+ #??# #???????????????????? | | #???????####### #??# #???????????????????? | | #?????????????# #??# Y g#???????????????????? | | #?????????????# #??# a #???????????????????? | | #?????????????# #??# #???????????????????? | | ##########????# #??# #???????????????????? | | #??###+#### #???????????????????? | | """ """ #??# ####### ###???????????????????? | | """ """ #??# #?????# #?????????????????????? | | """ """ #??# #?????# #?????????????????????? | | #??# = #?????# #?????????????????????? | | """ #??#* #?????# #?????????????????????? | | g""" k #??# #?????# #?????????????????????? | | """ #??# #?????#p#?????????????????????? | | !!! #??# #?????# #?????????????????????? | | !! #??# #?????#u#?????????????????????? | | !! #??# #?????# #?????????????????????? | | r #??#= #?????# #?????????????????????? | | ###+######??# #?????# #???????????????k?????? | | #???# #?????# #?????????????????????? | | ##########+####### #?????????????????????? | +----------------------------------------------------+ Best States ------------- Heat Dissipation 25 Energy Generation 15 Energy Capacity 100 Matter Stores 300 Matter Capacity 300 Sight Range 16 Robot Scan Range 35 Terrain Scan Density 10 Resistance: KI 20 Resistance: TH 20 Resistance: EX 20 Resistance: EM 20 Resistance: I 20 Resistance: S 20 Resistance: P 20 Evasion (%) 63 Offensive Hacking 35 Item Schematics ----------------- Hammer | -9/Materials | Hacked Hacking Suite | -8/Materials | Hacked Robot Schematics ------------------ None Fabricated ------------ Hacking Suite | x1 | -7/Factory Repaired ---------- Flight Unit | 20% | -7/Factory | Broken Alien Tech Used ----------------- None Achievements -------------- None Challenges ------------ None RPGLIKE | -11 -10 -10 -9 -8 -7 --------- Run | Yrd Mat Min Mat Mat Fac Levels Raised 8 | . . . 3 2 3 XP Earned 17498 | 4000 . 600 4123 3382 5393 XP Spent 14025 | 3500 . . 2400 5150 2975 Upgrades 32 | 6 . . 3 10 13 Propulsion Slot 1 | 1 . . . . . Utility Slot 3 | 3 . . . . . Weapon Slot 1 | . . . . . 1 Energy Generation 2 | . . . . . 2 Inventory Capacity 2 | . . . . 2 . Sensor Range 10 | . . . . . 10 Melee Accuracy 8 | . . . . 8 . Hack Attack % 5 | 2 . . 3 . . Protomatter Created 166 | . . . 101 . 65 Integrity Restored 294 | . . . 168 . 126 Core 294 | . . . 168 . 126 Protomatter Decayed 27 | . . . 27 . . Game ------ Seed DirtyPulseSword Manual? 0 Play Time 00:13:23 Cumulative 192.5 hours Start 2025.05.24 @ 11:19:26 End 2025.05.24 @ 11:31:28 Sessions 1 Manual Loads 0 Difficulty Adventurer Special Mode Winter2019/RPGLIKE Game No. 193 Rogue 18 Adventurer 164 Explorer 11 Win Type - Total 50 Types 13/0/14/2/11/0/4/1/0/5 Lore% 47 Gallery% 47 Achievement% 67 Wizard Run 0 Options --------- Layout 0 ASCII 0 Keyboard 0 Movement Numpad Keybinds 0 Fullscreen 2 Font 12/Smallcaps Map View 83x54 Zoom Use 0% Tactical HUD 0 Map Filters NONE Filters NONE Steam 1 RUN: 08bc164b-59e6-4871-a847-360e9d0b5925